bitfinex/quotes_ETHUSD_20250508
["timestamp","ask_amount","ask_price","bid_price","bid_amount"]
[1746742736542,0.08395741,2182.9,2182.2,1.92515512]
[1746742736715,4.58100495,2183.0,2182.5,7.58181452]
[1746742737041,4.58116188,2182.9,2182.6,3.645]
[1746742737242,4.58098248,2183.0,2182.6,7.285]
[1746742737449,4.58022259,2183.3,2182.6,7.285]
[1746742737450,4.58025542,2183.3,2182.6,7.285]
[1746742737741,4.58073447,2183.1,2182.6,11.91239462]
[1746742737966,4.5805492,2183.2,2182.6,7.285]
[1746742738166,4.5805492,2183.2,2182.8,0.7591]
[1746742738379,4.58058076,2183.2,2182.8,0.7591]
[1746742738669,4.58033696,2183.3,2182.8,5.34036938]
[1746742738880,0.7657,2183.7,2182.9,0.04580582]
[1746742739049,0.7657,2183.7,2182.9,4.62676665]
[1746742739050,4.58016354,2183.4,2182.9,4.62676665]
[1746742739235,4.58016354,2183.4,2183.0,0.99670065]
[1746742739434,4.57967921,2183.6,2183.2,4.58033736]
[1746742739631,4.57967921,2183.6,2183.3,3.645]
[1746742740038,4.579512,2183.7,2183.3,3.645]
[1746742740348,4.57896423,2183.9,2183.4,1.18653605]
[1746742740570,3.07178309,2184.2,2183.4,4.18653605]
[1746742740893,4.5667497,2189.8,2187.3,0.55]
[1746742741182,4.5667497,2189.8,2186.7,4.57291339]
[1746742741183,0.04569966,2188.1,2187.4,2.1161154]
[1746742741336,0.04569966,2188.1,2187.9,0.55]
[1746742741536,6.18483508,2188.2,2188.1,4.57017503]
[1746742741736,1.43873508,2188.2,2188.1,0.7557]
[1746742742397,1.43873508,2188.2,2186.3,0.23851095]
[1746742742536,1.43873508,2188.2,2188.1,0.41904933]
[1746742742537,6.00870126,2188.2,2188.1,0.41904933]
[1746742742738,26.20323013,2188.2,2186.3,0.47192228]
[1746742742937,9.94860462,2188.1,2186.7,4.5730381]
[1746742743246,0.08395741,2188.0,2186.3,0.51765525]
[1746742743438,0.08395741,2188.0,2186.9,4.57261447]
[1746742743637,4.57080171,2187.8,2186.3,0.47192228]
[1746742743838,5.12141208,2187.6,2186.4,4.5737285]
[1746742744038,0.9691546,2187.7,2186.3,0.23851095]
[1746742744286,0.08395741,2188.0,2186.3,4.81233813]
[1746742744490,0.08395741,2188.0,2186.9,0.8091]
[1746742744790,12.8565971,2188.5,2188.4,4.56954852]
[1746742745074,12.8565971,2188.5,2187.9,4.57041483]
[1746742745075,0.8185,2189.4,2188.1,4.547]
[1746742745373,0.8185,2189.4,2188.3,4.56975734]
[1746742745572,0.8051,2189.9,2188.6,4.56913095]
[1746742745781,4.56639628,2190.0,2189.0,4.56810773]
[1746742745937,0.8051,2190.4,2189.0,4.56825786]
[1746742746141,0.8051,2190.4,2188.6,4.482]
[1746742746142,5.54288303,2189.8,2188.4,0.7506]
[1746742746340,5.0362883,2189.7,2188.4,1.08918485]
[1746742746578,0.7977,2189.5,2187.9,0.7986]
[1746742746736,4.56840001,2189.0,2188.1,4.57008635]
[1746742746934,10.23414187,2189.4,2187.9,0.7986]
[1746742747139,0.12454903,2188.9,2188.8,4.56871345]
[1746742747379,0.12454903,2188.9,2188.5,6.71628113]
[1746742747535,4.5686325,2188.9,2188.5,6.71628113]
[1746742747735,0.57963103,2188.8,2188.5,6.71628113]
[1746742748163,0.12276778,2188.8,2188.5,6.71628113]
[1746742748453,0.55,2189.3,2188.5,6.76197277]
[1746742748674,0.08395741,2189.4,2188.8,4.56866608]
[1746742748984,0.12400884,2189.2,2189.1,4.56808734]
[1746742749146,4.5657965,2190.2,2189.0,0.7693]
[1746742749147,0.11428502,2189.3,2189.0,0.7693]
[1746742749347,4.479,2189.9,2188.6,4.56897881]
[1746742749578,0.11410323,2189.2,2188.5,7.47908113]
[1746742749762,10.10584044,2189.9,2188.5,7.47908113]
[1746742749763,0.55,2189.5,2188.6,5.60982529]
[1746742749969,5.11892219,2188.7,2188.6,5.60982529]
[1746742750165,10.51372219,2188.7,2188.6,5.60982529]
[1746742750355,16.25302101,2188.7,2188.6,5.60982529]
[1746742750765,4.56996618,2188.2,2188.1,4.77602302]
[1746742750963,4.56996618,2188.2,2188.1,3.86489099]
[1746742750964,9.11903033,2188.2,2188.1,3.86489099]
[1746742751163,14.59971219,2188.2,2188.1,3.86489099]
[1746742751775,11.59971219,2188.2,2188.1,3.86489099]
[1746742751976,20.8416611,2188.2,2188.1,3.86489099]
[1746742752293,7.5705928,2187.9,2187.8,7.93668627]
[1746742752451,4.57321426,2186.7,2186.1,0.8242]
[1746742752652,0.10480261,2186.6,2186.1,0.8242]
[1746742752883,0.10480261,2186.6,2186.2,4.61987501]
[1746742753083,4.57269154,2186.9,2186.2,0.04573166]
[1746742753329,0.10314509,2186.5,2186.2,0.04573166]
[1746742753523,4.57409898,2186.3,2186.1,0.8242]
[1746742753726,0.10276589,2186.4,2186.1,5.39843606]
[1746742754019,0.10276589,2186.4,2185.6,4.646]
[1746742754020,0.10230253,2186.2,2185.6,5.4005]
[1746742754224,0.45726915,2186.9,2185.9,4.5747405]
[1746742754549,0.10320049,2186.8,2186.0,4.57447356]
[1746742754823,0.10320049,2186.8,2185.7,4.63]
[1746742755047,0.55,2186.7,2185.6,0.7545]
[1746742755332,0.55,2186.2,2184.4,5.67152733]
[1746742755485,0.55,2186.2,2184.8,0.7761]
[1746742755486,4.5768685,2184.9,2184.8,0.7761]
[1746742755690,4.57668909,2185.0,2184.5,0.56715273]
[1746742755691,4.57749702,2184.6,2184.5,0.56715273]
[1746742755918,4.57770656,2184.5,2184.4,5.67152733]
[1746742756430,4.67451475,2184.5,2184.4,5.67152733]
[1746742756585,0.09680819,2184.5,2184.4,6.23868006]
[1746742756790,4.57768366,2184.6,2184.4,6.23868006]
[1746742757012,4.57656095,2185.1,2184.4,10.24932754]
[1746742757220,4.5761456,2185.3,2184.5,0.04577318]
[1746742757424,4.57629831,2185.2,2184.7,4.57710822]
[1746742757613,4.57582135,2185.4,2184.8,5.34686531]
[1746742757928,16.471,2185.5,2184.9,3.53468653]
[1746742758232,0.6092883,2186.1,2184.9,3.53468653]
[1746742758233,0.6092883,2186.1,2184.9,0.53468653]
[1746742758526,4.57539938,2185.7,2185.2,3.0]
[1746742758687,4.57519686,2185.7,2184.9,0.53468653]
[1746742758893,4.5751933,2185.7,2184.8,0.7698]
[1746742759125,4.5759379,2185.4,2184.8,8.34682599]
[1746742759315,4.57609546,2185.3,2184.8,3.7698]
[1746742759488,4.57627432,2185.2,2184.8,3.7698]
[1746742759826,4.57595869,2185.4,2184.8,8.34674695]
[1746742760025,4.57595869,2185.4,2184.8,9.68493243]
[1746742760324,4.57595869,2185.4,2184.6,4.57744806]
[1746742760325,3.55,2185.6,2184.6,0.8135]
[1746742760526,4.5759505,2185.4,2184.8,4.57703106]
[1746742760726,4.57574292,2185.5,2184.8,4.57703106]
[1746742760916,4.57606011,2185.3,2184.7,7.62292894]
[1746742761112,4.57583867,2185.4,2184.7,3.04576885]
[1746742761426,4.57592699,2185.4,2184.8,4.96300488]
[1746742761610,4.57600159,2185.4,2184.8,3.38592689]
[1746742761809,4.57600159,2185.4,2184.9,4.5767344]
[1746742762014,4.57563089,2185.5,2184.8,7.96289824]
[1746742762209,4.57557291,2185.6,2185.0,3.0]
[1746742762418,4.5739377,2186.3,2185.1,0.04576176]
[1746742762624,5.3914,2186.4,2185.3,3.0]
[1746742762795,5.3914,2186.4,2185.0,4.602]
[1746742762796,4.57566887,2185.5,2185.2,3.0]
[1746742762998,4.57582522,2185.4,2185.2,3.0]
[1746742763215,4.57582522,2185.4,2184.8,0.38592689]
[1746742763216,4.57624499,2185.2,2184.9,3.0]
[1746742763424,4.57424796,2186.2,2185.2,4.57608655]
[1746742763625,4.57494421,2185.9,2185.4,3.0]
[1746742763825,4.57471943,2186.0,2185.4,4.57570854]
[1746742764148,4.57492423,2185.9,2185.5,3.0]
[1746742764536,4.57444125,2186.1,2185.5,5.45267157]
[1746742764708,4.57468038,2186.0,2185.5,3.8315]
[1746742765227,4.57479053,2185.9,2185.5,3.8315]
[1746742765442,4.5746605,2186.0,2185.5,8.40710613]
[1746742765624,4.57458827,2186.0,2185.5,3.87725138]
[1746742765947,4.57466447,2186.0,2185.5,5.4069949]
[1746742766144,4.57554508,2185.6,2185.1,5.35364631]
[1746742766348,4.57414692,2186.2,2185.1,0.7774]
[1746742766650,4.57521009,2185.7,2185.2,7.57611663]
[1746742766853,4.57506144,2185.8,2185.2,3.0]
[1746742767017,4.57444166,2186.1,2185.1,0.7774]
[1746742767018,4.57594104,2185.4,2185.1,0.7774]
[1746742767536,4.627,2186.2,2185.1,2.19443764]
[1746742767719,4.57532487,2185.7,2185.2,7.57614885]
[1746742767937,4.57477469,2185.9,2185.3,1.9]
[1746742768149,4.57549883,2185.6,2185.3,1.9]
[1746742768343,4.57582135,2185.4,2185.3,1.9]
[1746742768878,4.57629675,2185.2,2185.0,3.0]
[1746742769030,4.57613499,2185.3,2184.9,4.56]
[1746742769231,4.57647582,2185.1,2184.7,0.7974]
[1746742769427,4.57592013,2185.4,2184.7,5.37452514]
[1746742769665,0.45751982,2185.6,2184.7,0.7974]
[1746742769966,4.57648976,2185.1,2184.7,0.7974]
[1746742770179,4.57638447,2185.2,2184.7,0.7974]
[1746742770329,4.57622668,2185.3,2184.8,7.57706167]
[1746742770879,0.55,2185.5,2184.7,0.7974]
[1746742771083,4.57636337,2185.2,2184.8,3.0]
[1746742771378,4.57634238,2185.2,2184.7,3.7974]
[1746742771710,0.55,2185.5,2184.6,0.04576955]
[1746742771711,0.55,2185.3,2184.6,0.04576955]
[1746742771876,4.627,2185.5,2184.4,0.04577437]
[1746742772175,4.57611464,2185.3,2184.8,4.57699404]
[1746742772337,4.57624387,2185.2,2184.7,7.57718553]
[1746742772674,4.57648907,2185.1,2184.7,3.0]
[1746742772846,4.57653212,2185.1,2184.6,0.34124624]
[1746742773067,4.5765776,2185.1,2184.9,1.9]
[1746742773375,4.57632048,2185.2,2184.7,7.57712206]
[1746742773590,4.57646909,2185.1,2184.7,8.33490725]
[1746742773764,4.57626807,2185.2,2184.8,4.57702167]
[1746742774178,0.55,2185.5,2184.8,4.57702167]
[1746742774484,4.57626916,2185.2,2184.8,4.57702167]
[1746742774655,4.57645032,2185.1,2184.7,8.3349014]
[1746742774856,4.57633343,2185.2,2184.9,3.0]
[1746742775057,4.57613543,2185.3,2184.9,7.57684521]
[1746742775254,0.55,2185.8,2184.9,7.57684521]
[1746742775255,5.12513431,2185.8,2184.9,7.57684521]
[1746742775482,4.57591815,2185.4,2185.0,4.57663253]
[1746742775689,4.57642827,2185.2,2184.8,3.0]
[1746742775893,4.57663113,2185.1,2184.6,7.57738624]
[1746742776096,4.57626851,2185.2,2184.8,7.57706698]
[1746742776390,4.57616923,2185.3,2184.8,7.57696573]
[1746742776564,4.57616923,2185.3,2184.6,3.0]
[1746742776751,4.57658571,2185.1,2184.8,3.0]
[1746742776951,4.57640047,2185.2,2184.8,3.0]
[1746742776952,4.57543462,2185.6,2184.8,3.0]
[1746742777154,4.57632627,2185.2,2184.8,3.30457676]
[1746742777365,4.57561198,2185.5,2184.8,3.30457676]
[1746742777563,4.5764731,2185.1,2184.8,0.30457676]
[1746742777765,4.57615985,2185.3,2184.8,0.30457676]
[1746742777976,4.57592074,2185.4,2185.0,1.9]
[1746742778186,0.7874,2186.9,2185.3,0.7777]
[1746742778411,0.7874,2186.9,2185.6,3.0]
[1746742778712,4.57205559,2187.2,2186.2,0.8078]
[1746742779006,4.57491979,2185.9,2185.7,0.8078]
[1746742779308,4.57268279,2186.9,2185.8,0.42181164]
[1746742779309,4.57427501,2186.2,2185.8,0.42181164]
[1746742779607,4.48,2186.8,2185.8,0.42181164]
[1746742779790,4.57440641,2186.1,2185.8,0.42181164]
[1746742779996,4.574296,2186.2,2185.8,0.42181164]
[1746742780303,4.57433797,2186.2,2185.9,0.42181164]
[1746742780808,4.57456541,2186.0,2185.9,0.42181164]
[1746742782271,4.5744129,2186.1,2185.9,0.42181164]
[1746742782472,4.57456541,2186.0,2185.9,0.42181164]
[1746742782795,4.57445775,2186.1,2185.9,0.42181164]
[1746742783020,4.57456541,2186.0,2185.9,0.42181164]
[1746742783188,4.57495763,2185.9,2185.7,0.8078]
[1746742783391,4.57443274,2186.1,2185.7,0.8078]
[1746742783800,5.34951765,2186.6,2185.7,0.8078]
[1746742783997,4.5747878,2185.9,2185.7,0.8078]
[1746742784200,4.57529646,2185.7,2185.3,3.8041]
[1746742785223,4.57540939,2185.6,2185.4,0.42651725]
[1746742785528,4.57561198,2185.5,2185.4,0.42651725]
[1746742786186,4.57545265,2185.6,2185.4,0.42651725]
[1746742786187,4.57553203,2185.6,2185.4,0.42651725]
[1746742786391,4.57561198,2185.5,2185.3,0.8041]
[1746742786600,4.57576436,2185.5,2185.3,0.8041]
[1746742786927,4.57582135,2185.4,2185.0,7.65700835]
[1746742787323,4.5760997,2185.3,2185.0,3.17800835]
[1746742787525,0.8167,2185.9,2185.4,4.57569166]
[1746742787526,4.57489326,2185.9,2185.4,4.57569166]
[1746742787729,4.57469744,2186.0,2185.5,4.6212742]
[1746742787949,5.01295176,2186.5,2185.6,0.7771]
[1746742788099,4.57466279,2186.0,2185.6,0.7771]
[1746742788440,4.57418232,2186.2,2185.6,0.7771]
[1746742788441,4.57512287,2185.8,2185.6,0.7771]
[1746742788602,4.57436972,2186.1,2185.6,0.7771]
[1746742788804,4.57499077,2185.8,2185.6,0.7771]
[1746742789198,4.57510081,2185.8,2185.7,2.4196607]
[1746742789523,4.57489731,2185.9,2185.7,2.4196607]
[1746742789724,4.5744477,2186.1,2185.7,2.4196607]
[1746742789929,0.53495176,2186.5,2185.7,2.4196607]
[1746742790098,4.57498398,2185.8,2185.7,2.4196607]
[1746742790297,4.5745921,2186.0,2185.7,2.4196607]
[1746742790533,4.57479929,2185.9,2185.7,2.4196607]
[1746742790732,4.57498398,2185.8,2185.7,2.4196607]
[1746742792033,4.57479929,2185.9,2185.7,2.4196607]
[1746742792343,5.54613391,2185.8,2185.7,2.4196607]
[1746742793248,5.54613391,2185.8,2185.3,5.46246827]
[1746742793541,4.57582135,2185.4,2185.3,5.46246827]
[1746742794805,4.57582135,2185.4,2185.3,3.04280757]
[1746742796752,4.57582135,2185.4,2185.3,2.4196607]
[1746742797947,4.49097055,2185.4,2185.3,2.4196607]
[1746742798464,9.52147055,2185.4,2185.3,2.4196607]
[1746742799136,10.15542796,2185.4,2185.3,2.4196607]
[1746742799566,14.47342796,2185.4,2185.3,2.4196607]
[1746742800950,13.90642796,2185.4,2185.3,2.4196607]
[1746742801461,14.45442796,2185.4,2185.3,2.4196607]
[1746742802034,14.45442796,2185.4,2185.0,3.17800835]
[1746742802035,5.12603075,2185.3,2184.8,3.07316798]
[1746742802234,4.5768685,2184.9,2184.8,3.07316798]
[1746742804881,4.5768685,2184.9,2184.8,2.45030248]
[1746742805293,0.08395741,2185.3,2184.8,3.26640248]
[1746742805580,4.5764586,2185.1,2184.8,3.26640248]
[1746742805881,4.57548663,2185.6,2184.9,0.37698271]
[1746742806066,8.533,2185.7,2184.8,3.26640248]
[1746742806271,4.57678518,2185.0,2184.8,3.26640248]
[1746742806482,4.57641232,2185.2,2184.8,3.26640248]
[1746742806647,4.57477469,2185.9,2184.9,0.0457638]
[1746742806984,4.57564179,2185.5,2185.0,4.57653413]
[1746742807188,0.53362747,2185.9,2184.9,3.78892619]
[1746742807348,4.57554235,2185.6,2185.1,4.57629684]
[1746742807543,4.57455711,2186.1,2185.5,4.57547645]
[1746742807884,5.38097119,2186.7,2185.8,4.57482697]
[1746742808101,4.57383407,2186.4,2185.9,4.57465369]
[1746742808411,4.57184656,2187.3,2186.3,3.7721]
[1746742808611,4.57283148,2186.9,2186.5,3.0]
[1746742808763,4.57275008,2186.9,2186.4,7.57368911]
[1746742808969,4.57253325,2187.0,2186.5,4.57347223]
[1746742809199,4.5724737,2187.0,2186.4,7.61928616]
[1746742809373,4.5724737,2187.0,2186.3,1.11546579]
[1746742809374,4.57268279,2186.9,2186.3,0.7721]
[1746742809577,4.57268279,2186.9,2186.1,0.04573555]
[1746742809903,5.0298,2186.8,2185.8,0.7721]
[1746742810102,5.0298,2186.8,2185.8,0.8178438]
[1746742810103,4.57425996,2186.2,2185.8,0.8178438]
[1746742810270,4.57456618,2186.0,2185.8,0.7721]
[1746742810600,4.57456714,2186.0,2185.8,0.7721]
[1746742810910,4.57331016,2186.6,2185.8,0.7721]
[1746742810911,4.57410964,2186.3,2185.8,0.8178448]
[1746742811069,4.57410964,2186.3,2185.8,6.0265314]
[1746742811402,4.57410964,2186.3,2185.8,5.9807866]
[1746742811701,4.57381206,2186.4,2185.9,4.57474355]
[1746742811901,4.57314372,2186.7,2185.8,1.40596006]
[1746742812106,4.57314372,2186.7,2185.8,0.7721]
[1746742812401,4.5751933,2185.7,2185.6,3.07045328]
[1746742813172,5.4902116,2185.7,2185.6,3.07045328]
[1746742813607,6.38443529,2185.7,2185.6,3.07045328]
[1746742813808,6.38443529,2185.7,2184.9,0.13977355]
[1746742813809,4.57603075,2185.3,2185.2,3.07045328]
[1746742816124,4.57603075,2185.3,2184.3,8.07245328]
[1746742816125,4.57791613,2184.4,2184.3,8.07245328]
[1746742816419,4.57791613,2184.4,2184.3,3.89045328]
[1746742817093,4.57791613,2184.4,2184.3,3.07045328]
[1746742817530,6.28537846,2184.4,2184.3,3.07045328]
[1746742817728,10.47037846,2184.4,2184.3,3.07045328]
[1746742817886,11.02037846,2184.4,2184.3,3.07045328]
[1746742818225,19.65222585,2184.4,2184.3,3.07045328]
[1746742818602,18.25933587,2184.4,2184.3,3.07045328]
[1746742818998,6.36933587,2184.4,2184.3,3.07045328]
[1746742819186,4.66187354,2184.4,2184.3,3.07045328]
[1746742819387,4.57896423,2183.9,2183.8,3.07045328]
[1746742819586,4.5784254,2184.2,2183.9,0.8073]
[1746742819809,4.57875457,2184.0,2183.9,0.8073]
[1746742820010,4.57864974,2184.1,2183.9,0.8073]
[1746742820326,4.57855283,2184.1,2183.9,1.19507533]
[1746742820500,4.57857338,2184.1,2183.9,1.19507533]
[1746742820709,4.57831024,2184.3,2183.9,1.19507533]
[1746742820910,0.08395741,2184.4,2183.9,4.19507533]
[1746742821218,4.57812571,2184.3,2183.9,4.19507533]
[1746742821425,0.08395741,2184.4,2183.9,3.8073]
[1746742821735,4.66196343,2184.4,2183.9,3.8530886]
[1746742821899,4.66196343,2184.4,2183.9,8.43194488]
[1746742822233,4.57728749,2184.7,2183.9,8.38615335]
[1746742822400,4.57803168,2184.4,2183.9,8.38615335]
[1746742822739,4.5782022,2184.3,2183.9,5.82348717]
[1746742822914,4.57833554,2184.2,2183.9,5.82348717]
[1746742823127,4.57875457,2184.0,2183.9,0.8073]
[1746742823467,4.5778528,2184.5,2184.0,5.38602444]
[1746742823629,4.5778528,2184.5,2184.0,5.43180628]
[1746742823813,4.5778528,2184.5,2184.1,1.15418063]
[1746742824011,4.57624016,2185.2,2184.2,3.04578182]
[1746742824246,4.57697281,2184.9,2184.4,4.57778641]
[1746742824453,4.57648745,2185.1,2184.5,4.62343345]
[1746742824656,5.0197,2185.6,2184.7,7.5772345]
[1746742824861,5.0197,2185.6,2184.7,9.11]
[1746742825027,5.0197,2185.6,2184.7,6.15576779]
[1746742825217,4.57594333,2185.4,2184.8,7.57698904]
[1746742825421,4.57628022,2185.2,2184.8,3.0]
[1746742825619,4.57641694,2185.2,2184.8,4.19521608]
[1746742825815,4.57610408,2185.3,2184.8,8.77213502]
[1746742826266,0.7718,2186.0,2185.1,5.35342]
[1746742826415,4.5753664,2185.7,2185.2,4.57621381]
[1746742826746,4.5748871,2185.9,2185.4,4.5757251]
[1746742827120,9.5328878,2186.3,2185.4,5.49547362]
[1746742827121,4.57471663,2186.0,2185.4,5.49547362]
[1746742827461,4.57601995,2185.4,2185.2,3.0]
[1746742827639,4.57624016,2185.2,2185.1,0.777]
[1746742827957,4.5758938,2185.4,2185.1,0.777]
[1746742828131,5.12498398,2185.8,2185.1,3.777]
[1746742828335,4.57624016,2185.2,2185.1,0.777]
[1746742828522,4.57613532,2185.3,2185.1,0.777]
[1746742828718,4.57624016,2185.2,2185.1,0.777]
[1746742829072,4.57489107,2185.9,2185.4,4.57570488]
[1746742829272,4.57426243,2186.2,2185.7,4.57508039]
[1746742829565,0.34274229,2186.5,2185.5,1.28997049]
[1746742829766,0.8165,2186.7,2185.5,0.8324]
[1746742829767,4.57519583,2185.7,2185.5,0.8324]
[1746742830216,4.57540263,2185.6,2185.5,0.8324]
[1746742830930,4.57593231,2185.4,2185.2,0.8126]
[1746742831133,4.57603075,2185.3,2185.2,0.8126]
[1746742831454,4.57603075,2185.3,2185.2,3.88305328]
[1746742831751,4.78909106,2185.3,2185.2,3.07045328]
[1746742831956,0.21306031,2185.3,2185.2,3.07045328]
[1746742832128,4.57603075,2185.3,2185.2,3.07045328]
[1746742832331,5.25146166,2185.3,2185.2,3.07045328]
[1746742832547,4.79385858,2185.3,2185.2,3.07045328]
[1746742833270,4.57728749,2184.7,2184.6,0.7673]
[1746742833634,4.79293431,2184.7,2184.5,3.0]
[1746742833819,4.57728749,2184.7,2184.5,3.0]
[1746742834021,0.21523005,2184.6,2184.4,3.07045328]
[1746742834427,4.57770656,2184.5,2184.4,3.07045328]
[1746742834664,6.04324122,2184.5,2184.4,3.07045328]
[1746742834830,6.25767468,2184.5,2184.4,3.07045328]
[1746742835361,6.25767468,2184.5,2183.9,0.8061]
[1746742835362,4.57854493,2184.1,2184.0,3.07045328]
[1746742835558,4.77239637,2184.1,2184.0,3.07045328]
[1746742837760,5.32239637,2184.1,2184.0,3.07045328]
[1746742837964,4.57987117,2183.5,2183.2,3.07045328]
[1746742838272,0.18942342,2183.4,2183.3,3.0]
[1746742838462,0.18942342,2183.4,2183.2,7.65077365]
[1746742838650,4.57987567,2183.5,2183.3,3.0]
[1746742838854,4.58010063,2183.4,2183.2,3.07045328]
[1746742839079,4.57992352,2183.5,2183.2,3.07045328]
[1746742839439,4.58003425,2183.4,2183.2,3.07045328]
[1746742839640,4.58022259,2183.3,2183.2,3.07045328]
[1746742839840,4.58010417,2183.4,2183.2,3.07045328]
[1746742840485,4.58022259,2183.3,2183.0,0.8061]
[1746742840681,4.57993293,2183.5,2183.1,3.0]
[1746742840893,4.58004453,2183.4,2183.1,3.0]
[1746742841091,4.57946318,2183.7,2183.1,7.58063685]
[1746742841255,4.57938361,2183.7,2183.0,0.8061]
[1746742841448,4.57959333,2183.6,2183.0,0.8061]
[1746742841657,4.58049293,2183.2,2183.0,0.8061]
[1746742842253,0.04580642,2183.5,2183.3,4.58011132]
[1746742842465,0.04580642,2183.5,2183.0,1.49375533]
[1746742842664,4.58061362,2183.2,2183.0,0.8061]
[1746742842951,4.62573173,2183.5,2183.0,5.38680669]
[1746742843170,4.58001417,2183.4,2183.0,5.38680669]
[1746742843501,4.62572509,2183.5,2183.1,3.0]
[1746742843660,0.04580642,2183.5,2183.1,3.0]
[1746742843865,4.62562921,2183.5,2183.2,0.83868544]
[1746742844584,0.04580642,2183.5,2183.2,4.58030662]
[1746742844783,0.04580642,2183.5,2183.3,4.58020906]
[1746742844980,0.04580642,2183.5,2183.1,3.0]
[1746742845183,4.62574393,2183.5,2183.1,3.0]
[1746742845385,0.04580642,2183.5,2183.2,4.62611233]
[1746742845809,0.04580642,2183.5,2183.0,3.8061]
[1746742845810,4.58031353,2183.3,2183.0,3.8061]
[1746742846126,0.04580642,2183.5,2183.0,3.8061]
[1746742846127,4.58016729,2183.4,2183.0,3.8061]
[1746742846265,4.58041581,2183.3,2183.0,0.8061]
[1746742846459,4.58041581,2183.3,2183.0,3.8061]
[1746742846716,0.04580642,2183.2,2182.8,3.0]
[1746742846868,4.5809418,2183.0,2182.8,3.0]
[1746742847063,4.5809418,2183.0,2182.7,4.044]
[1746742847064,4.58106189,2182.9,2182.7,4.044]
[1746742847309,4.58106189,2182.9,2182.8,3.0]
[1746742847985,0.04580642,2182.7,2182.6,0.7882]
[1746742848367,0.04580642,2182.7,2182.6,3.7882]
[1746742848570,0.04580642,2182.7,2182.6,8.36989156]
[1746742848786,0.04580642,2182.7,2182.6,3.7882]
[1746742848966,0.04580642,2182.7,2182.6,8.36989156]
[1746742849169,0.04580642,2183.3,2182.9,4.58086151]
[1746742849468,0.04580642,2183.3,2183.0,4.58077924]
[1746742849970,0.04580642,2183.3,2182.6,5.39041253]
[1746742849971,4.58062364,2183.2,2182.6,5.39041253]
[1746742850300,4.58106873,2182.9,2182.7,3.0]
[1746742850606,4.62605616,2183.3,2182.7,7.62718986]
[1746742850607,0.17047182,2182.8,2182.7,7.62718986]
[1746742850811,0.17047182,2182.8,2182.7,0.04580999]
[1746742851011,0.04580642,2183.3,2182.7,7.62719573]
[1746742851185,4.58076696,2183.1,2182.6,5.36981213]
[1746742851391,4.5809236,2183.0,2182.7,3.0]
[1746742851587,0.17125873,2183.0,2182.7,3.0]
[1746742851786,0.17125873,2183.0,2182.7,3.04580622]
[1746742851991,0.17125873,2183.0,2182.7,7.62710156]
[1746742852193,4.58061125,2183.2,2182.7,7.62710156]
[1746742852396,0.17108092,2182.9,2182.7,7.62710156]
[1746742852596,4.58072671,2183.1,2182.7,7.62710156]
[1746742852793,0.17085518,2182.8,2182.7,3.0]
[1746742853084,0.04580642,2183.3,2182.7,3.0]
[1746742853085,4.5806335,2183.2,2182.7,4.58146183]
[1746742853297,4.5807546,2183.1,2182.7,3.0]
[1746742853492,4.58090867,2183.0,2182.7,3.0]
[1746742853699,4.58111971,2182.9,2182.6,3.7882]
[1746742854030,0.1709031,2182.8,2182.6,3.7882]
[1746742854216,0.04580642,2182.7,2182.6,0.7882]
[1746742854631,0.21634001,2182.7,2182.6,0.7882]
[1746742854837,0.04580642,2182.7,2182.6,0.7882]
[1746742855152,0.21466121,2182.7,2182.6,0.7882]
[1746742855290,0.04580642,2182.7,2182.6,5.36989156]
[1746742855615,0.04580642,2182.7,2182.6,0.7882]
[1746742855817,0.21466121,2182.7,2182.6,3.7882]
[1746742855995,0.04580642,2182.7,2182.4,7.58201071]
[1746742856198,0.04580642,2182.7,2182.4,3.0]
[1746742856396,0.1542157,2182.6,2182.4,3.0]
[1746742856631,0.1542157,2182.6,2182.4,7.58209184]
[1746742857148,0.1542157,2182.6,2182.4,7.5819182]
[1746742857430,0.1542157,2182.6,2182.4,8.87848976]
[1746742857727,0.1542157,2182.6,2182.4,8.87853216]
[1746742857907,0.04580642,2182.7,2182.4,8.87853216]
[1746742858103,4.58170688,2182.6,2182.3,0.13722703]
[1746742858313,4.73601843,2182.6,2182.3,3.0]
[1746742858505,0.04580642,2182.5,2182.3,3.0]
[1746742858704,0.15290708,2182.4,2182.2,0.8016]
[1746742859110,4.58179301,2182.6,2182.2,0.8016]
[1746742859310,4.58210115,2182.5,2182.2,0.8016]
[1746742859649,0.15308499,2182.5,2182.2,4.58239832]
[1746742859940,4.58120083,2182.9,2182.4,7.58211143]
[1746742860117,0.1576407,2182.8,2182.5,3.0]
[1746742860314,0.1576407,2182.8,2182.2,0.53843552]
[1746742860503,0.1576407,2182.8,2182.6,4.5815636]
[1746742860711,0.15727797,2182.7,2182.6,7.5815636]
[1746742860907,4.58043239,2183.2,2182.2,1.34003552]
[1746742861150,4.58179984,2182.6,2182.2,0.8016]
[1746742861459,4.58203651,2182.5,2182.2,0.8016]
[1746742861610,4.58195883,2182.5,2182.2,0.8016]
[1746742861810,0.15617017,2182.4,2182.2,0.8016]
[1746742862011,4.58292022,2182.1,2181.9,3.87205328]
[1746742862207,4.58295142,2182.0,2181.9,3.07045328]
[1746742862658,4.73766054,2182.0,2181.9,3.07045328]
[1746742864061,0.15470912,2182.0,2181.7,7.65401201]
[1746742864216,0.15470912,2182.0,2181.9,4.58316146]
[1746742864418,8.48720282,2182.4,2181.9,8.65310577]
[1746742864616,3.905,2182.4,2182.0,3.0]
[1746742864833,8.48717629,2182.4,2182.0,3.0]
[1746742865055,0.7851,2182.6,2182.0,3.0]
[1746742865350,0.7851,2182.6,2182.0,9.11]
[1746742865512,4.58224597,2182.4,2182.0,10.13257703]
[1746742865734,4.58256028,2182.2,2182.0,9.11]
[1746742866135,4.58274139,2182.1,2182.0,6.11]
[1746742866336,4.58329628,2181.9,2181.8,3.0]
[1746742866584,4.58307133,2182.0,2181.8,3.0]
[1746742867171,4.58316146,2181.9,2181.8,3.0]
[1746742867375,4.58262442,2182.2,2181.8,3.0]
[1746742867759,4.58316146,2181.9,2181.8,3.0]
[1746742868073,4.58288666,2182.1,2181.8,3.0]
[1746742868278,4.58316146,2181.9,2181.8,3.0]
[1746742868481,4.58303755,2182.0,2181.7,3.0]
[1746742868660,4.58316183,2181.9,2181.7,3.0]
[1746742868981,4.58421197,2181.4,2181.3,3.07045328]
[1746742869381,6.31837304,2181.4,2181.3,3.07045328]
[1746742869751,6.40233045,2181.4,2181.3,3.07045328]
[1746742870273,5.85233045,2181.4,2181.3,3.07045328]
[1746742870469,0.08395741,2181.4,2181.0,3.07045328]
[1746742870674,4.66827254,2181.4,2181.0,7.65548807]